fUSD/lending_fUSD_20240222
["ID","MTS","AMOUNT","RATE_DAILY","PERIOD"]
[314826782,1708571473397,-9540.98,0.0003589,2]
[314826783,1708571473406,-500.0,0.0003589,2]
[314826784,1708571473416,-241.21,0.0003589,2]
[314826785,1708571473425,-500.0,0.0003589,2]
[314826786,1708571473435,-500.0,0.0003589,2]
[314826787,1708571473446,-500.0,0.0003589,2]
[314826788,1708571473455,-500.0,0.0003589,2]
[314826789,1708571473466,-500.0,0.0003589,2]
[314826790,1708571473477,-1233.59,0.0003589,2]
[314826791,1708571473486,-3195.85,0.0003589,2]
[314826792,1708571473496,-500.0,0.0003589,2]
[314826793,1708571473506,-818.0,0.0003589,2]
[314826794,1708571473515,-500.0,0.0003589,2]
[314826795,1708571473525,-500.0,0.0003589,2]
[314826796,1708571473535,-500.0,0.0003589,2]
[314826797,1708571473544,-8159.8,0.0003589,2]
[314826798,1708571473554,-500.0,0.0003589,2]
[314826799,1708571473563,-500.0,0.0003589,2]
[314826800,1708571473573,-3562.02,0.0003589,2]
[314826801,1708571473583,-500.0,0.0003589,2]
[314826802,1708571473592,-505.31643425,0.0003589,2]
[314826803,1708571473601,-756.65,0.0003589,2]
[314826804,1708571473614,-500.0,0.0003589,2]
[314826805,1708571473624,-500.0,0.0003589,2]
[314826806,1708571473634,-500.0,0.0003589,2]
[314826807,1708571473643,-500.0,0.0003589,2]
[314826808,1708571473654,-500.0,0.0003589,2]
[314826809,1708571473663,-500.0,0.0003589,2]
[314826810,1708571473673,-500.0,0.0003589,2]
[314826811,1708571473683,-1097.81,0.0003589,2]
[314826812,1708571473695,-500.0,0.0003589,2]
[314826813,1708571473704,-500.0,0.0003589,2]
[314826814,1708571473713,-500.0,0.0003589,2]
[314826815,1708571473722,-1046.88,0.0003589,2]
[314826816,1708571473732,-505.20868535,0.0003589,2]
[314826817,1708571473741,-1760.89,0.0003589,2]
[314826818,1708571473751,-633.91,0.0003589,2]
[314826819,1708571473760,-500.0,0.0003589,2]
[314826820,1708571473770,-501.57,0.0003589,2]
[314826821,1708571473780,-7057.18,0.0003589,2]
[314826822,1708571473789,-3877.71,0.0003589,2]
[314826823,1708571473799,-3730.63,0.0003589,2]
[314826824,1708571473808,-797.35,0.0003589,2]
[314826825,1708571473818,-500.0,0.0003589,2]
[314826826,1708571473828,-589.83,0.0003589,2]
[314826827,1708571473837,-500.0,0.0003589,2]
[314826828,1708571473847,-509.69925623,0.0003589,2]
[314826829,1708571473856,-1003.08,0.0003589,2]
[314826830,1708571473867,-500.0,0.0003589,2]
[314826831,1708571473876,-500.0,0.0003589,2]
[314826832,1708571473886,-500.0,0.0003589,2]
[314826833,1708571473896,-542.91,0.0003589,2]
[314826834,1708571473905,-521.05762313,0.0003589,2]
[314826835,1708571473915,-622.76,0.0003589,2]
[314826836,1708571473926,-500.0,0.0003589,2]
[314826837,1708571473935,-500.0,0.0003589,2]
[314826838,1708571473944,-4861.35,0.0003589,2]
[314826839,1708571473953,-500.0,0.0003589,2]
[314826840,1708571473963,-930.1,0.0003589,2]
[314826841,1708571473972,-553.37,0.0003589,2]
[314826842,1708571473981,-500.0,0.0003589,2]
[314826843,1708571473990,-500.0,0.0003589,2]
[314826844,1708571474000,-500.0,0.0003589,2]
[314826845,1708571474010,-3412.21,0.0003589,2]
[314826846,1708571474020,-500.0,0.0003589,2]
[314826847,1708571474029,-500.0,0.0003589,2]
[314826848,1708571474039,-9518.08,0.0003589,2]
[314826849,1708571474048,-214.17116011,0.0003589,2]
[314826850,1708571474058,-500.0,0.0003589,2]
[314826851,1708571474068,-500.0,0.0003589,2]
[314826852,1708571474077,-500.0,0.0003589,2]
[314826853,1708571474087,-500.0,0.0003589,2]
[314826854,1708571474097,-500.0,0.0003589,2]
[314826855,1708571474106,-1168.72,0.0003589,2]
[314826856,1708571474116,-500.0,0.0003589,2]
[314826857,1708571474126,-500.0,0.0003589,2]
[314826858,1708571474135,-500.0,0.0003589,2]
[314826859,1708571474145,-500.0,0.0003589,2]
[314826860,1708571474155,-1548.09,0.0003589,2]
[314826861,1708571474165,-500.0,0.0003589,2]
[314826862,1708571474175,-11555.49,0.0003589,2]
[314826863,1708571474185,-500.0,0.0003589,2]
[314826864,1708571474400,-500.0,0.0003589,2]
[314826865,1708571474418,-500.0,0.0003589,2]
[314826866,1708571474437,-500.0,0.0003589,2]
[314826867,1708571474447,-500.0,0.0003589,2]
[314826868,1708571474456,-741.7,0.0003589,2]
[314826869,1708571474466,-532.53719971,0.0003589,2]
[314826870,1708571474475,-500.0,0.0003589,2]
[314826871,1708571474485,-500.0,0.0003589,2]
[314826872,1708571474494,-8528.54,0.0003589,2]
[314826873,1708571474503,-503.59820512,0.0003589,2]
[314826874,1708571474513,-500.0,0.0003589,2]
[314826875,1708571474523,-500.0,0.0003589,2]
[314826876,1708571474532,-478.1023633,0.0003589,2]
[314826877,1708571474541,-500.0,0.0003589,2]
[314826878,1708571474550,-500.0,0.0003589,2]
[314826879,1708571474560,-623.36,0.0003589,2]
[314826880,1708571474569,-500.0,0.0003589,2]
[314826881,1708571474579,-1233.94,0.0003589,2]
[314826882,1708571474588,-500.0,0.0003589,2]
[314826883,1708571474597,-500.0,0.0003589,2]
[314826884,1708571474609,-901.81,0.0003589,2]
[314826885,1708571474619,-500.0,0.0003589,2]
[314826886,1708571474628,-500.0,0.0003589,2]
[314826887,1708571474638,-500.0,0.0003589,2]
[314826888,1708571474647,-500.0,0.0003589,2]
[314826889,1708571474656,-5100.61,0.0003589,2]
[314826890,1708571474665,-1113.67,0.0003589,2]
[314826891,1708571474675,-500.0,0.0003589,2]
[314826892,1708571474684,-2803.13,0.0003589,2]
[314826893,1708571474693,-1443.2,0.0003589,2]
[314826894,1708571474704,-506.52650878,0.0003589,2]
[314826895,1708571474713,-513.85771234,0.0003589,2]
[314826896,1708571474723,-500.0,0.0003589,2]
[314826897,1708571474732,-536.19,0.0003589,2]
[314826898,1708571474742,-500.0,0.0003589,2]
[314826899,1708571474751,-1202.93,0.0003589,2]
[314826900,1708571474761,-500.0,0.0003589,2]
[314826901,1708571474771,-2348.06,0.0003589,2]
[314826902,1708571474781,-344.34456887,0.0003589,2]
[314826903,1708571474790,-737.87,0.0003589,2]
[314826904,1708571474799,-8907.39,0.0003589,2]
[314826905,1708571474808,-500.0,0.0003589,2]
[314826906,1708571474818,-198.33400066,0.0003589,2]
[314826907,1708571474827,-4960.05,0.0003589,2]
[314826908,1708571474836,-500.0,0.0003589,2]
[314826909,1708571474845,-500.0,0.0003589,2]
[314826910,1708571474854,-2953.86,0.0003589,2]
[314826911,1708571474863,-500.0,0.0003589,2]
[314826912,1708571474872,-522.97473804,0.0003589,2]
[314826913,1708571474881,-1954.58,0.0003589,2]
[314826914,1708571474890,-500.0,0.0003589,2]
[314826915,1708571474899,-500.0,0.0003589,2]
[314826916,1708571474908,-500.0,0.0003589,2]
[314826917,1708571474917,-500.0,0.0003589,2]
[314826918,1708571474926,-500.0,0.0003589,2]
[314826919,1708571474935,-500.0,0.0003589,2]
[314826920,1708571474944,-500.0,0.0003589,2]
[314826921,1708571474953,-500.0,0.0003589,2]
[314826922,1708571474963,-1835.44,0.0003589,2]
[314826923,1708571474972,-500.0,0.0003589,2]
[314826924,1708571474982,-16345.74,0.0003589,2]
[314826925,1708571474991,-616.52,0.0003589,2]
[314826926,1708571475000,-1157.87,0.0003589,2]
[314826927,1708571475009,-500.0,0.0003589,2]
[314826928,1708571475019,-500.0,0.0003589,2]
[314826929,1708571475029,-500.0,0.0003589,2]
[314826930,1708571475039,-500.0,0.0003589,2]
[314826931,1708571475048,-500.0,0.0003589,2]
[314826932,1708571475058,-471.10689888,0.0003589,2]
[314826933,1708571475067,-500.0,0.0003589,2]
[314826934,1708571475077,-500.0,0.0003589,2]
[314826935,1708571475086,-500.0,0.0003589,2]
[314826936,1708571475095,-378.00276817,0.0003589,2]
[314826937,1708571475105,-47824.21,0.0003589,2]
[314826938,1708571475115,-500.0,0.0003589,2]
[314826939,1708571475125,-923.19,0.0003589,2]
[314826940,1708571475139,-1182.15,0.0003589,2]
[314826941,1708571475148,-3063.33,0.0003589,2]
[314826942,1708571475158,-500.0,0.0003589,2]
[314826943,1708571475167,-513.38810701,0.0003589,2]
[314826944,1708571475176,-500.0,0.0003589,2]
[314826945,1708571475186,-500.0,0.0003589,2]
[314826946,1708571475195,-11866.0,0.0003589,2]
[314826947,1708571475205,-713.96,0.0003589,2]
[314826948,1708571475215,-500.0,0.0003589,2]
[314826949,1708571475224,-500.0,0.0003589,2]
[314826950,1708571475234,-500.0,0.0003589,2]
[314826951,1708571475244,-517.9,0.0003589,2]
[314826952,1708571475253,-194.92926645,0.0003589,2]
[314826953,1708571475266,-247.85030234,0.0003589,2]
[314826954,1708571475275,-500.0,0.0003589,2]
[314826955,1708571475284,-500.0,0.0003589,2]
[314826956,1708571475293,-2026.69,0.0003589,2]
[314826957,1708571475302,-500.0,0.0003589,2]
[314826958,1708571475312,-500.0,0.0003589,2]
[314826959,1708571475321,-500.0,0.0003589,2]
[314826960,1708571475331,-956.78,0.0003589,2]
[314826961,1708571475340,-253.95986139,0.0003589,2]
[314826962,1708571475350,-500.0,0.0003589,2]
[314826963,1708571475359,-500.0,0.0003589,2]
[314826964,1708571475369,-500.0,0.0003589,2]
[314826965,1708571475378,-500.0,0.0003589,2]
[314826966,1708571475389,-16637.24,0.0003589,2]
[314826967,1708571475398,-524.74291876,0.0003589,2]
[314826968,1708571475407,-801.22,0.0003589,2]
[314826969,1708571475417,-500.0,0.0003589,2]
[314826970,1708571475426,-500.0,0.0003589,2]
[314826971,1708571475436,-500.0,0.0003589,2]
[314826972,1708571475445,-785.21,0.0003589,2]
[314826973,1708571475455,-405.88065044,0.0003589,2]
[314826974,1708571475464,-500.0,0.0003589,2]
[314826975,1708571475473,-501.67,0.0003589,2]
[314826976,1708571475483,-617.16,0.0003589,2]
[314826977,1708571475492,-682.86,0.0003589,2]
[314826978,1708571475501,-500.0,0.0003589,2]
[314826979,1708571475511,-809.53,0.0003589,2]
[314826980,1708571475520,-500.0,0.0003589,2]
[314826981,1708571475530,-500.0,0.0003589,2]
[314826982,1708571475539,-967.04,0.0003589,2]
[314826983,1708571475549,-500.0,0.0003589,2]
[314826984,1708571475558,-1271.42,0.0003589,2]
[314826985,1708571475568,-175.66261423,0.0003589,2]
[314826986,1708571475577,-624.82,0.0003589,2]
[314826987,1708571475587,-500.0,0.0003589,2]
[314826988,1708571475596,-500.0,0.0003589,2]
[314826989,1708571475608,-2805.24,0.0003589,2]
[314826990,1708571475623,-500.0,0.0003589,2]
[314826991,1708571475632,-510.96064012,0.0003589,2]
[314826992,1708571475642,-500.0,0.0003589,2]
[314826993,1708571475653,-774.63,0.0003589,2]
[314826994,1708571475663,-500.0,0.0003589,2]
[314826995,1708571475672,-515.12176087,0.0003589,2]
[314826996,1708571475682,-500.0,0.0003589,2]
[314826997,1708571475693,-500.0,0.0003589,2]
[314826998,1708571475703,-500.0,0.0003589,2]
[314826999,1708571475713,-3102.16,0.0003589,2]
[314827000,1708571475723,-524.46,0.0003589,2]
[314827001,1708571475732,-500.0,0.0003589,2]
[314827002,1708571475741,-500.0,0.0003589,2]
[314827003,1708571475750,-500.0,0.0003589,2]
[314827004,1708571475759,-500.0,0.0003589,2]
[314827005,1708571475769,-500.0,0.0003589,2]
[314827006,1708571475778,-11105.96,0.0003589,2]
[314827007,1708571475787,-500.0,0.0003589,2]
[314827008,1708571475797,-2885.03,0.0003589,2]
[314827009,1708571475806,-500.0,0.0003589,2]
[314827010,1708571475840,-500.0,0.0003589,2]
[314827011,1708571475850,-4523.22,0.0003589,2]
[314827012,1708571475859,-500.0,0.0003589,2]
[314827013,1708571475868,-1384.58,0.0003589,2]
[314827014,1708571475877,-500.0,0.0003589,2]
[314827015,1708571475887,-564.24,0.0003589,2]
[314827016,1708571475896,-500.0,0.0003589,2]
[314827017,1708571475913,-1558.04,0.0003589,2]
[314827018,1708571475928,-1576.19,0.0003589,2]
[314827019,1708571475937,-4721.11,0.0003589,2]
[314827020,1708571475947,-500.0,0.0003589,2]
[314827021,1708571475957,-5798.22,0.0003589,2]
[314827022,1708571475967,-500.0,0.0003589,2]
[314827023,1708571475977,-500.0,0.0003589,2]
[314827024,1708571475986,-500.0,0.0003589,2]
[314827025,1708571475997,-2471.6,0.0003589,2]
[314827026,1708571476007,-500.0,0.0003589,2]
[314827027,1708571476017,-500.0,0.0003589,2]
[314827028,1708571476027,-502.78,0.0003589,2]
[314827029,1708571476037,-500.0,0.0003589,2]
[314827030,1708571476047,-706.81,0.0003589,2]
[314827031,1708571476056,-500.0,0.0003589,2]
[314827032,1708571476066,-22854.05,0.0003589,2]
[314827033,1708571476075,-1839.11,0.0003589,2]
[314827034,1708571476085,-664.12,0.0003589,2]
[314827035,1708571476095,-1851.23,0.0003589,2]
[314827036,1708571476105,-500.0,0.0003589,2]
[314827037,1708571476115,-500.0,0.0003589,2]
[314827038,1708571476125,-500.0,0.0003589,2]
[314827039,1708571476135,-500.0,0.0003589,2]
[314827040,1708571476144,-1256.1,0.0003589,2]
[314827041,1708571476155,-500.0,0.0003589,2]
[314827042,1708571476164,-500.0,0.0003589,2]
[314827043,1708571476174,-2117.58,0.0003589,2]
[314827044,1708571476184,-3618.29,0.0003589,2]
[314827045,1708571476194,-500.0,0.0003589,2]
[314827046,1708571476203,-500.0,0.0003589,2]
[314827047,1708571476213,-3081.23,0.0003589,2]
[314827048,1708571476223,-955.99,0.0003589,2]
[314827049,1708571476232,-500.0,0.0003589,2]
[314827050,1708571476242,-508.31932134,0.0003589,2]
[314827051,1708571476251,-1239.0,0.0003589,2]
[314827052,1708571476261,-500.0,0.0003589,2]
[314827053,1708571476270,-506.02175816,0.0003589,2]
[314827054,1708571476280,-204.13008038,0.0003589,2]
[314827055,1708571476290,-500.0,0.0003589,2]
[314827056,1708571476299,-615.41,0.0003589,2]
[314827057,1708571476309,-2103.9,0.0003589,2]
[314827058,1708571476319,-502.65579115,0.0003589,2]
[314827059,1708571476329,-500.0,0.0003589,2]
[314827060,1708571476339,-500.0,0.0003589,2]
[314827061,1708571476349,-664.12,0.0003589,2]
[314827062,1708571476358,-645.28,0.0003589,2]
[314827063,1708571476368,-500.0,0.0003589,2]
[314827064,1708571476378,-835.19,0.0003589,2]
[314827065,1708571476387,-500.0,0.0003589,2]
[314827066,1708571476397,-500.0,0.0003589,2]
[314827067,1708571476407,-7561.17,0.0003589,2]
[314827068,1708571476417,-500.0,0.0003589,2]
[314827069,1708571476427,-15542.27,0.0003589,2]
[314827070,1708571476437,-1190.36,0.0003589,2]
[314827071,1708571476447,-500.0,0.0003589,2]
[314827072,1708571476457,-733.12,0.0003589,2]
[314827073,1708571476467,-500.0,0.0003589,2]
[314827074,1708571476476,-500.0,0.0003589,2]
[314827075,1708571476486,-500.0,0.0003589,2]
[314827076,1708571476495,-765.37,0.0003589,2]
[314827077,1708571476505,-2606.07,0.0003589,2]
[314827078,1708571476515,-1764.0,0.0003589,2]
[314827079,1708571476525,-234.14222068,0.0003589,2]
[314827080,1708571476534,-500.0,0.0003589,2]
[314827081,1708571476544,-500.0,0.0003589,2]
[314827082,1708571476554,-500.0,0.0003589,2]
[314827083,1708571476563,-500.0,0.0003589,2]
[314827084,1708571476573,-509.46,0.0003589,2]
[314827085,1708571476583,-663.24,0.0003589,2]
[314827086,1708571476593,-685.55,0.0003589,2]
[314827087,1708571476603,-500.0,0.0003589,2]
[314827088,1708571476616,-2864.15,0.0003589,2]
[314827089,1708571476625,-500.0,0.0003589,2]
[314827090,1708571476635,-500.0,0.0003589,2]
[314827091,1708571476644,-843.54,0.0003589,2]
[314827092,1708571476654,-500.0,0.0003589,2]
[314827093,1708571476663,-766.2,0.0003589,2]
[314827094,1708571476673,-500.0,0.0003589,2]
[314827095,1708571476684,-500.0,0.0003589,2]
[314827096,1708571476694,-515.98216138,0.0003589,2]
[314827097,1708571476704,-500.0,0.0003589,2]
[314827098,1708571476823,-500.0,0.0003589,2]
[314827099,1708571476833,-1751.61,0.0003589,2]
[314827100,1708571476842,-509.23,0.0003589,2]
[314827101,1708571476854,-14314.79,0.0003589,2]
[314827102,1708571476863,-1234.77,0.0003589,2]
[314827103,1708571476872,-1775.26,0.0003589,2]
[314827104,1708571476881,-5176.95,0.0003589,2]
[314827105,1708571476890,-500.0,0.0003589,2]
[314827106,1708571476899,-1756.06,0.0003589,2]
[314827107,1708571476909,-500.0,0.0003589,2]
[314827108,1708571476918,-500.0,0.0003589,2]
[314827109,1708571476927,-500.0,0.0003589,2]
[314827110,1708571476937,-2325.19,0.0003589,2]
[314827111,1708571476946,-500.0,0.0003589,2]
[314827112,1708571476955,-234.93498041,0.0003589,2]
[314827113,1708571476965,-500.0,0.0003589,2]
[314827114,1708571476974,-542.82,0.0003589,2]
[314827115,1708571476984,-500.0,0.0003589,2]
[314827116,1708571476994,-624.56883704,0.0003589,2]
[314827117,1708571477003,-1579.35,0.0003589,2]
[314827118,1708571477012,-828.99,0.0003589,2]
[314827119,1708571477021,-500.0,0.0003589,2]
[314827120,1708571477031,-500.0,0.0003589,2]
[314827121,1708571477040,-500.0,0.0003589,2]
[314827122,1708571477049,-500.0,0.0003589,2]
[314827123,1708571477058,-571.00922284,0.0003589,2]
[314827124,1708571477067,-1054.4,0.0003589,2]
[314827125,1708571477077,-922.11,0.0003589,2]
[314827126,1708571477090,-500.0,0.0003589,2]
[314827127,1708571477100,-1005.63,0.0003589,2]
[314827128,1708571477109,-821.91,0.0003589,2]
[314827129,1708571477119,-500.0,0.0003589,2]
[314827130,1708571477128,-1849.16,0.0003589,2]
[314827131,1708571477138,-500.0,0.0003589,2]
[314827132,1708571477147,-2652.91,0.0003589,2]
[314827133,1708571477157,-500.0,0.0003589,2]
[314827134,1708571477166,-7491.62,0.0003589,2]
[314827135,1708571477175,-1020.58,0.0003589,2]
[314827136,1708571477185,-500.0,0.0003589,2]
[314827137,1708571477195,-500.0,0.0003589,2]
[314827138,1708571477205,-500.0,0.0003589,2]
[314827139,1708571477214,-500.0,0.0003589,2]
[314827140,1708571477224,-500.0,0.0003589,2]
[314827141,1708571477234,-1517.94,0.0003589,2]
[314827142,1708571477243,-500.0,0.0003589,2]
[314827143,1708571477252,-500.0,0.0003589,2]
[314827144,1708571477262,-3446.09,0.0003589,2]
[314827145,1708571477272,-500.0,0.0003589,2]
[314827146,1708571477283,-500.0,0.0003589,2]
[314827147,1708571477292,-776.63,0.0003589,2]
[314827148,1708571477302,-981.24,0.0003589,2]
[314827149,1708571477311,-500.0,0.0003589,2]
[314827150,1708571477321,-500.0,0.0003589,2]
[314827151,1708571477331,-1416.3,0.0003589,2]
[314827152,1708571477341,-1668.28,0.0003589,2]
[314827153,1708571477350,-500.0,0.0003589,2]
[314827154,1708571477360,-500.0,0.0003589,2]
[314827155,1708571477369,-500.0,0.0003589,2]
[314827156,1708571477379,-500.0,0.0003589,2]
[314827157,1708571477388,-3401.61,0.0003589,2]
[314827158,1708571477398,-1239.99,0.0003589,2]
[314827159,1708571477408,-1173.97,0.0003589,2]
[314827160,1708571477417,-1753.88,0.0003589,2]
[314827161,1708571477427,-500.0,0.0003589,2]
[314827162,1708571477436,-500.0,0.0003589,2]
[314827163,1708571477446,-826.06,0.0003589,2]
[314827164,1708571477455,-500.0,0.0003589,2]
[314827166,1708571477465,-500.0,0.0003589,2]
[314827167,1708571477474,-500.0,0.0003589,2]
[314827168,1708571477483,-500.0,0.0003589,2]
[314827169,1708571477493,-500.0,0.0003589,2]
[314827170,1708571477503,-500.0,0.0003589,2]
[314827171,1708571477512,-518.6472464,0.0003589,2]
[314827172,1708571477522,-526.6,0.0003589,2]
[314827173,1708571477531,-500.0,0.0003589,2]
[314827174,1708571477541,-506.2985173,0.0003589,2]
[314827175,1708571477550,-1732.09,0.0003589,2]
[314827176,1708571477559,-1490.35,0.0003589,2]
[314827177,1708571477569,-500.0,0.0003589,2]
[314827178,1708571477578,-8719.42,0.0003589,2]
[314827179,1708571477588,-970.8,0.0003589,2]
[314827180,1708571477597,-500.0,0.0003589,2]
[314827181,1708571477607,-1041.15,0.0003589,2]
[314827182,1708571477620,-612.06,0.0003589,2]
[314827183,1708571477630,-500.0,0.0003589,2]
[314827184,1708571477639,-500.0,0.0003589,2]
[314827185,1708571477648,-500.0,0.0003589,2]
[314827186,1708571477658,-500.0,0.0003589,2]
[314827187,1708571477667,-500.0,0.0003589,2]
[314827188,1708571477677,-8404.87,0.0003589,2]
[314827189,1708571477686,-500.0,0.0003589,2]
[314827190,1708571477697,-500.0,0.0003589,2]
[314827191,1708571477707,-678.34,0.0003589,2]
[314827192,1708571477716,-500.0,0.0003589,2]
[314827193,1708571477726,-500.0,0.0003589,2]
[314827194,1708571477735,-1474.18,0.0003589,2]
[314827195,1708571477744,-500.0,0.0003589,2]
[314827196,1708571477754,-556.36,0.0003589,2]
[314827197,1708571477763,-500.0,0.0003589,2]
[314827198,1708571477772,-500.0,0.0003589,2]
[314827199,1708571477781,-1970.11,0.0003589,2]
[314827200,1708571477791,-926.78,0.0003589,2]
[314827201,1708571477800,-500.0,0.0003589,2]
[314827202,1708571477809,-500.0,0.0003589,2]
[314827203,1708571477818,-500.0,0.0003589,2]
[314827204,1708571477828,-981.32,0.0003589,2]
[314827205,1708571477837,-620.07,0.0003589,2]
[314827206,1708571477847,-500.0,0.0003589,2]
[314827207,1708571477857,-500.0,0.0003589,2]
[314827208,1708571477866,-803.46,0.0003589,2]
[314827209,1708571477875,-500.0,0.0003589,2]
[314827210,1708571477885,-20932.1,0.0003589,2]
[314827211,1708571477894,-3642.13,0.0003589,2]
[314827212,1708571477903,-502.36855736,0.0003589,2]
[314827213,1708571477912,-961.82,0.0003589,2]
[314827214,1708571477922,-1831.45,0.0003589,2]
[314827215,1708571477931,-500.0,0.0003589,2]
[314827216,1708571477941,-500.0,0.0003589,2]
[314827217,1708571477950,-500.0,0.0003589,2]
[314827218,1708571477960,-500.0,0.0003589,2]
[314827219,1708571477969,-528.91,0.0003589,2]
[314827220,1708571477979,-911.87,0.0003589,2]
[314827221,1708571477988,-500.0,0.0003589,2]
[314827222,1708571477997,-1653.07,0.0003589,2]
[314827223,1708571478006,-1431.54,0.0003589,2]
[314827224,1708571478015,-509.68813807,0.0003589,2]
[314827225,1708571478025,-2034.08,0.0003589,2]
[314827226,1708571478035,-601.79,0.0003589,2]
[314827227,1708571478044,-228.71959673,0.0003589,2]
[314827228,1708571478053,-500.0,0.0003589,2]
[314827229,1708571478062,-1513.56,0.0003589,2]
[314827230,1708571478071,-500.0,0.0003589,2]
[314827231,1708571478081,-500.0,0.0003589,2]
[314827232,1708571478090,-500.0,0.0003589,2]
[314827233,1708571478099,-959.25,0.0003589,2]
[314827234,1708571478108,-500.0,0.0003589,2]
[314827235,1708571478118,-500.0,0.0003589,2]
[314827236,1708571478127,-500.0,0.0003589,2]
[314827237,1708571478136,-500.0,0.0003589,2]
[314827238,1708571478145,-1348.49,0.0003589,2]
[314827239,1708571478155,-1014.28,0.0003589,2]
[314827240,1708571478164,-960.38,0.0003589,2]
[314827241,1708571478174,-500.0,0.0003589,2]
[314827242,1708571478183,-500.0,0.0003589,2]
[314827243,1708571478194,-500.0,0.0003589,2]
[314827244,1708571478203,-500.0,0.0003589,2]
[314827245,1708571478213,-513.20343893,0.0003589,2]
[314827246,1708571478223,-654.8,0.0003589,2]
[314827247,1708571478232,-500.0,0.0003589,2]
[314827248,1708571478242,-1129.13,0.0003589,2]
[314827249,1708571478251,-531.32,0.0003589,2]
[314827250,1708571478261,-500.0,0.0003589,2]
[314827251,1708571478271,-690.97,0.0003589,2]
[314827252,1708571478281,-538.3,0.0003589,2]
[314827253,1708571478291,-500.0,0.0003589,2]
[314827254,1708571478301,-500.0,0.0003589,2]
[314827255,1708571478315,-881.41,0.0003589,2]
[314827256,1708571478325,-774.91,0.0003589,2]
[314827257,1708571478336,-6164.58,0.0003589,2]
[314827258,1708571478346,-500.0,0.0003589,2]
[314827259,1708571478356,-500.0,0.0003589,2]
[314827260,1708571478366,-1435.52,0.0003589,2]
[314827261,1708571478376,-500.0,0.0003589,2]
[314827262,1708571478386,-3036.4,0.0003589,2]
[314827263,1708571478395,-4067.05,0.0003589,2]
[314827264,1708571478406,-500.0,0.0003589,2]
[314827265,1708571478416,-570.75,0.0003589,2]
[314827266,1708571478426,-846.04,0.0003589,2]
[314827267,1708571478436,-500.0,0.0003589,2]
[314827268,1708571478446,-500.0,0.0003589,2]
[314827269,1708571478456,-500.0,0.0003589,2]
[314827270,1708571478467,-500.0,0.0003589,2]
[314827271,1708571478477,-533.69307169,0.0003589,2]
[314827272,1708571478487,-546.83,0.0003589,2]
[314827273,1708571478497,-500.0,0.0003589,2]
[314827274,1708571478508,-1703.61,0.0003589,2]
[314827275,1708571478518,-500.0,0.0003589,2]
[314827276,1708571478528,-960.14,0.0003589,2]
[314827277,1708571478538,-3552.36,0.0003589,2]
[314827278,1708571478547,-500.0,0.0003589,2]
[314827279,1708571478557,-10105.72,0.000359,7]
[314827280,1708571478567,-5262.43,0.000359,7]
[314827281,1708571478577,-8797.54,0.000359,7]
[314827282,1708571478587,-150.0,0.00035909,2]